[Event "Saint Louis Masters"]
[Date "2024.12.06"]
[White "Saric, Ivan"]
[Black "Kantor, Gergely"]
[WhiteElo "2669"]
[BlackElo "2550"]
[Round "8.8"]
[Result "1-0"]
[TimeControl "5400+30"]

1. e4 {[%clk 01:30:58] [%emt 00:00:01]} e5 {[%clk 01:29:29] [%emt 00:01:32]} 2.
Nf3 {[%clk 01:31:22] [%emt 00:00:06]} Nc6 {[%clk 01:29:55] [%emt 00:00:04]} 3.
Bc4 {[%clk 01:31:46] [%emt 00:00:05]} Nf6 {[%clk 01:30:09] [%emt 00:00:17]} 4.
d3 {[%clk 01:32:11] [%emt 00:00:04]} Bc5 {[%clk 01:30:37] [%emt 00:00:03]} 5. a4
{[%clk 01:32:33] [%emt 00:00:09]} a5 {[%clk 01:29:01] [%emt 00:02:06]} 6. Be3
{[%clk 01:24:59] [%emt 00:08:04]} Bxe3 {[%clk 01:28:51] [%emt 00:00:40]} 7. fxe3
{[%clk 01:25:24] [%emt 00:00:04]} d6 {[%clk 01:26:25] [%emt 00:02:57]} 8. Nc3
{[%clk 01:24:50] [%emt 00:01:04]} Be6 {[%clk 01:26:40] [%emt 00:00:15]} 9. Bxe6
{[%clk 01:21:15] [%emt 00:04:05]} fxe6 {[%clk 01:27:08] [%emt 00:00:02]} 10. d4
{[%clk 01:21:19] [%emt 00:00:26]} d5 {[%clk 01:17:57] [%emt 00:09:41]} 11. Nxe5
{[%clk 01:20:01] [%emt 00:01:48]} Nxe5 {[%clk 01:17:47] [%emt 00:00:39]} 12.
dxe5 {[%clk 01:20:27] [%emt 00:00:04]} Nxe4 {[%clk 01:18:08] [%emt 00:00:10]}
13. Nxe4 {[%clk 01:20:49] [%emt 00:00:07]} dxe4 {[%clk 01:18:33] [%emt
00:00:06]} 14. Qh5+ {[%clk 01:13:21] [%emt 00:07:57]} g6 {[%clk 01:17:44] [%emt
00:01:20]} 15. Qg4 {[%clk 00:59:45] [%emt 00:14:06]} Qd5 {[%clk 01:15:28] [%emt
00:02:46]} 16. Rd1 {[%clk 00:59:09] [%emt 00:01:06]} Qxe5 {[%clk 01:14:55] [%emt
00:01:01]} 17. O-O {[%clk 00:59:35] [%emt 00:00:04]} Rd8 {[%clk 01:10:26] [%emt
00:05:00]} 18. Rxd8+ {[%clk 00:45:24] [%emt 00:14:42]} Kxd8 {[%clk 01:10:39]
[%emt 00:00:16]} 19. Rf7 {[%clk 00:44:49] [%emt 00:01:05]} Ke8 {[%clk 00:46:36]
[%emt 00:24:33]} 20. Rf4 {[%clk 00:43:52] [%emt 00:01:26]} Kd7 {[%clk 00:39:29]
[%emt 00:07:38]} 21. c3 {[%clk 00:40:25] [%emt 00:03:56]} Re8 {[%clk 00:26:55]
[%emt 00:13:05]} 22. Qh4 {[%clk 00:32:54] [%emt 00:08:00]} Qg7 {[%clk 00:22:31]
[%emt 00:04:54]} 23. Qg5 {[%clk 00:31:42] [%emt 00:01:43]} e5 {[%clk 00:20:46]
[%emt 00:02:16]} 24. Qg4+ {[%clk 00:32:08] [%emt 00:00:03]} Kd8 {[%clk 00:16:51]
[%emt 00:04:25]} 25. Rf1 {[%clk 00:32:21] [%emt 00:00:16]} c6 {[%clk 00:16:52]
[%emt 00:00:29]} 26. Qxe4 {[%clk 00:32:27] [%emt 00:00:24]} Kc8 {[%clk 00:16:12]
[%emt 00:01:10]} 27. Qc4 {[%clk 00:27:27] [%emt 00:05:30]} Qd7 {[%clk 00:14:01]
[%emt 00:02:41]} 28. Qc5 {[%clk 00:26:50] [%emt 00:01:08]} Qd5 {[%clk 00:12:39]
[%emt 00:01:51]} 29. Qa7 {[%clk 00:25:19] [%emt 00:02:00]} Kc7 {[%clk 00:12:15]
[%emt 00:00:53]} 30. h3 {[%clk 00:20:25] [%emt 00:05:24]} e4 {[%clk 00:11:45]
[%emt 00:01:00]} 31. b4 {[%clk 00:19:31] [%emt 00:01:24]} axb4 {[%clk 00:10:25]
[%emt 00:01:50]} 32. cxb4 {[%clk 00:19:56] [%emt 00:00:05]} Re7 {[%clk 00:05:09]
[%emt 00:05:46]} 33. a5 {[%clk 00:19:29] [%emt 00:00:58]} Re8 {[%clk 00:03:15]
[%emt 00:02:24]} 34. a6 {[%clk 00:19:20] [%emt 00:00:39]} Rb8 {[%clk 00:03:38]
[%emt 00:00:07]} 35. b5 {[%clk 00:19:25] [%emt 00:00:24]} Qd6 {[%clk 00:00:57]
[%emt 00:03:11]} 36. Rf7+ {[%clk 00:18:46] [%emt 00:01:09]} Kd8 {[%clk 00:01:24]
[%emt 00:00:04]} 37. Rf8+ {[%clk 00:18:35] [%emt 00:00:41]} Qxf8 {[%clk
00:00:50] [%emt 00:01:04]} 38. Qxb8+ {[%clk 00:18:58] [%emt 00:00:06]} 1-0

[Site "Europe Echecs"]

[Event "Saint Louis Masters"]
[Date "2024.12.06"]
[White "Mishra, Abhimanyu"]
[Black "Batsuren, Dambasuren"]
[WhiteElo "2616"]
[BlackElo "2531"]
[Round "8.9"]
[Result "1/2-1/2"]
[TimeControl "5400+30"]

1. e4 {[%clk 01:30:58] [%emt 00:00:01]} e5 {[%clk 01:30:52] [%emt 00:00:08]} 2.
Nf3 {[%clk 01:31:21] [%emt 00:00:08]} Nc6 {[%clk 01:31:16] [%emt 00:00:06]} 3.
Bc4 {[%clk 01:31:36] [%emt 00:00:14]} Nf6 {[%clk 01:31:26] [%emt 00:00:20]} 4.
d3 {[%clk 01:31:48] [%emt 00:00:18]} Bc5 {[%clk 01:31:42] [%emt 00:00:14]} 5. c3
{[%clk 01:32:06] [%emt 00:00:13]} d6 {[%clk 01:31:42] [%emt 00:00:30]} 6. O-O
{[%clk 01:32:10] [%emt 00:00:26]} h6 {[%clk 01:31:18] [%emt 00:00:54]} 7. Re1
{[%clk 01:29:13] [%emt 00:03:27]} O-O {[%clk 01:31:16] [%emt 00:00:32]} 8. Nbd2
{[%clk 01:26:18] [%emt 00:03:25]} Bb6 {[%clk 01:29:28] [%emt 00:02:18]} 9. b4
{[%clk 01:24:04] [%emt 00:02:44]} a5 {[%clk 01:27:58] [%emt 00:02:00]} 10. b5
{[%clk 01:22:05] [%emt 00:02:30]} Ne7 {[%clk 01:28:18] [%emt 00:00:09]} 11. a4
{[%clk 01:16:12] [%emt 00:06:23]} Ng6 {[%clk 01:26:55] [%emt 00:01:52]} 12. d4
{[%clk 01:14:34] [%emt 00:02:07]} Re8 {[%clk 01:26:34] [%emt 00:00:54]} 13. Ba3
{[%clk 01:13:50] [%emt 00:01:14]} Be6 {[%clk 01:03:34] [%emt 00:23:29]} 14. Bf1
{[%clk 01:01:35] [%emt 00:12:46]} Bg4 {[%clk 00:49:13] [%emt 00:14:51]} 15. Qc2
{[%clk 00:54:08] [%emt 00:07:57]} d5 {[%clk 00:41:58] [%emt 00:07:45]} 16. exd5
{[%clk 00:43:49] [%emt 00:10:50]} e4 {[%clk 00:42:05] [%emt 00:00:22]} 17. Nxe4
{[%clk 00:42:42] [%emt 00:01:38]} Bxf3 {[%clk 00:42:11] [%emt 00:00:24]} 18.
gxf3 {[%clk 00:43:03] [%emt 00:00:09]} Nh4 {[%clk 00:42:23] [%emt 00:00:17]} 19.
Qd3 {[%clk 00:35:04] [%emt 00:08:29]} Nxd5 {[%clk 00:42:31] [%emt 00:00:21]} 20.
f4 {[%clk 00:28:51] [%emt 00:06:44]} Nxf4 {[%clk 00:29:37] [%emt 00:13:24]} 21.
Qg3 {[%clk 00:27:13] [%emt 00:02:08]} 1/2-1/2

[Site "Europe Echecs"]

[Event "Saint Louis Masters"]
[Date "2024.12.06"]
[White "Kevlishvili, Robby"]
[Black "Theodorou, Nikolas"]
[WhiteElo "2556"]
[BlackElo "2600"]
[Round "8.10"]
[Result "1/2-1/2"]
[TimeControl "5400+30"]

1. e4 {[%clk 01:30:53] [%emt 00:00:06]} e5 {[%clk 01:27:52] [%emt 00:03:08]} 2.
Nf3 {[%clk 01:31:12] [%emt 00:00:11]} Nc6 {[%clk 01:28:15] [%emt 00:00:07]} 3.
Bc4 {[%clk 01:31:35] [%emt 00:00:07]} Bc5 {[%clk 01:27:37] [%emt 00:01:08]} 4.
c3 {[%clk 01:31:47] [%emt 00:00:18]} Nf6 {[%clk 01:28:00] [%emt 00:00:07]} 5. d4
{[%clk 01:32:09] [%emt 00:00:08]} exd4 {[%clk 01:28:24] [%emt 00:00:06]} 6. e5
{[%clk 01:32:33] [%emt 00:00:06]} d5 {[%clk 01:28:18] [%emt 00:00:36]} 7. Bb5
{[%clk 01:32:54] [%emt 00:00:09]} Ne4 {[%clk 01:28:41] [%emt 00:00:07]} 8. cxd4
{[%clk 01:33:17] [%emt 00:00:07]} Bb6 {[%clk 01:28:45] [%emt 00:00:27]} 9. Be3
{[%clk 01:33:28] [%emt 00:00:19]} O-O {[%clk 01:28:24] [%emt 00:00:51]} 10. Nc3
{[%clk 01:33:17] [%emt 00:00:41]} Bg4 {[%clk 01:28:37] [%emt 00:00:17]} 11. Rc1
{[%clk 01:33:32] [%emt 00:00:15]} Ne7 {[%clk 01:25:48] [%emt 00:03:19]} 12. h3
{[%clk 01:33:02] [%emt 00:01:00]} Bh5 {[%clk 01:25:14] [%emt 00:01:04]} 13. g4
{[%clk 01:33:15] [%emt 00:00:17]} Bg6 {[%clk 01:25:38] [%emt 00:00:06]} 14. h4
{[%clk 01:33:38] [%emt 00:00:07]} c6 {[%clk 01:24:25] [%emt 00:01:43]} 15. Bd3
{[%clk 01:33:24] [%emt 00:00:43]} c5 {[%clk 01:21:09] [%emt 00:03:46]} 16. h5
{[%clk 01:27:29] [%emt 00:06:25]} cxd4 {[%clk 01:21:18] [%emt 00:00:22]} 17.
Bxd4 {[%clk 01:27:43] [%emt 00:00:15]} Nxc3 {[%clk 01:21:23] [%emt 00:00:26]}
18. Bxc3 {[%clk 01:27:05] [%emt 00:01:08]} Bxd3 {[%clk 01:21:44] [%emt
00:00:09]} 19. Qxd3 {[%clk 01:27:29] [%emt 00:00:05]} Nc6 {[%clk 01:21:12] [%emt
00:01:02]} 20. Qf5 {[%clk 01:26:54] [%emt 00:01:06]} Ne7 {[%clk 01:20:34] [%emt
00:01:08]} 21. Qd3 {[%clk 01:26:20] [%emt 00:01:04]} Nc6 {[%clk 01:20:34] [%emt
00:00:30]} 22. Qf5 {[%clk 01:26:40] [%emt 00:00:10]} Ne7 {[%clk 01:20:49] [%emt
00:00:16]} 1/2-1/2

[Site "Europe Echecs"]

[Event "Saint Louis Masters"]
[Date "2024.12.07"]
[White "Caruana, Fabiano"]
[Black "Donchenko, Alexander"]
[WhiteElo "2805"]
[BlackElo "2618"]
[Round "9.1"]
[Result "0-1"]
[TimeControl "5400+30"]

1. e4 {[%clk 01:28:07] [%emt 00:02:52]} c5 {[%clk 01:30:49] [%emt 00:00:11]} 2.
Nf3 {[%clk 01:28:31] [%emt 00:00:05]} d6 {[%clk 01:31:14] [%emt 00:00:06]} 3.
Bb5+ {[%clk 01:28:57] [%emt 00:00:05]} Nd7 {[%clk 01:30:44] [%emt 00:01:00]} 4.
O-O {[%clk 01:28:58] [%emt 00:00:29]} a6 {[%clk 01:30:58] [%emt 00:00:16]} 5.
Be2 {[%clk 01:29:20] [%emt 00:00:07]} Ngf6 {[%clk 01:29:42] [%emt 00:01:46]} 6.
d3 {[%clk 01:29:33] [%emt 00:00:18]} g6 {[%clk 01:24:30] [%emt 00:05:42]} 7. c4
{[%clk 01:29:47] [%emt 00:00:16]} Bg7 {[%clk 01:18:47] [%emt 00:06:13]} 8. Nc3
{[%clk 01:29:58] [%emt 00:00:19]} e5 {[%clk 01:18:39] [%emt 00:00:37]} 9. Ne1
{[%clk 01:19:26] [%emt 00:11:03]} Nf8 {[%clk 01:14:01] [%emt 00:05:08]} 10. f4
{[%clk 00:59:12] [%emt 00:20:43]} exf4 {[%clk 01:13:11] [%emt 00:01:21]} 11.
Bxf4 {[%clk 00:59:38] [%emt 00:00:04]} Ne6 {[%clk 01:13:24] [%emt 00:00:16]} 12.
Be3 {[%clk 00:57:11] [%emt 00:02:58]} O-O {[%clk 01:11:10] [%emt 00:02:43]} 13.
Qd2 {[%clk 00:57:20] [%emt 00:00:21]} b5 {[%clk 01:05:32] [%emt 00:06:09]} 14.
Rd1 {[%clk 00:46:17] [%emt 00:11:33]} Rb8 {[%clk 00:57:24] [%emt 00:08:37]} 15.
b3 {[%clk 00:43:10] [%emt 00:03:38]} b4 {[%clk 00:56:25] [%emt 00:01:29]} 16.
Na4 {[%clk 00:42:51] [%emt 00:00:48]} Bd7 {[%clk 00:54:10] [%emt 00:02:46]} 17.
e5 {[%clk 00:35:17] [%emt 00:08:04]} Ne8 {[%clk 00:53:20] [%emt 00:01:19]} 18.
exd6 {[%clk 00:34:38] [%emt 00:01:10]} Bxa4 {[%clk 00:53:34] [%emt 00:00:15]}
19. bxa4 {[%clk 00:35:06] [%emt 00:00:03]} Bc3 {[%clk 00:50:07] [%emt 00:03:57]}
20. Qc1 {[%clk 00:35:32] [%emt 00:00:04]} Nxd6 {[%clk 00:50:20] [%emt 00:00:17]}
21. Bg4 {[%clk 00:35:29] [%emt 00:00:33]} f5 {[%clk 00:44:35] [%emt 00:06:15]}
22. Bf3 {[%clk 00:35:55] [%emt 00:00:03]} f4 {[%clk 00:42:57] [%emt 00:02:08]}
23. Bd2 {[%clk 00:26:56] [%emt 00:09:30]} Bxd2 {[%clk 00:41:54] [%emt 00:01:32]}
24. Qxd2 {[%clk 00:26:59] [%emt 00:00:27]} Nd4 {[%clk 00:42:14] [%emt 00:00:10]}
25. Bd5+ {[%clk 00:22:45] [%emt 00:04:44]} Kg7 {[%clk 00:41:35] [%emt 00:01:09]}
26. Nf3 {[%clk 00:22:49] [%emt 00:00:26]} Qf6 {[%clk 00:40:33] [%emt 00:01:32]}
27. Kh1 {[%clk 00:18:16] [%emt 00:05:03]} Rbe8 {[%clk 00:35:05] [%emt 00:05:59]}
28. Nxd4 {[%clk 00:18:14] [%emt 00:00:32]} Qxd4 {[%clk 00:35:24] [%emt
00:00:11]} 29. a5 {[%clk 00:18:42] [%emt 00:00:02]} g5 {[%clk 00:34:17] [%emt
00:01:36]} 30. Qc2 {[%clk 00:15:21] [%emt 00:03:51]} Nf5 {[%clk 00:32:40] [%emt
00:02:07]} 31. Qa4 {[%clk 00:15:48] [%emt 00:00:04]} Rf6 {[%clk 00:23:30] [%emt
00:09:40]} 32. h3 {[%clk 00:11:23] [%emt 00:04:54]} Ng3+ {[%clk 00:21:56] [%emt
00:02:04]} 33. Kh2 {[%clk 00:11:51] [%emt 00:00:03]} Nxf1+ {[%clk 00:22:15]
[%emt 00:00:11]} 34. Rxf1 {[%clk 00:12:19] [%emt 00:00:02]} Re7 {[%clk 00:22:20]
[%emt 00:00:25]} 35. Qd1 {[%clk 00:12:45] [%emt 00:00:03]} Qe5 {[%clk 00:20:48]
[%emt 00:02:04]} 36. Kh1 {[%clk 00:11:02] [%emt 00:02:13]} Qe2 {[%clk 00:20:31]
[%emt 00:00:47]} 37. Qa1 {[%clk 00:11:27] [%emt 00:00:05]} Qxd3 {[%clk 00:20:27]
[%emt 00:00:34]} 38. Bf3 {[%clk 00:11:18] [%emt 00:00:39]} Qxc4 {[%clk 00:19:57]
[%emt 00:01:00]} 39. Rc1 {[%clk 00:11:32] [%emt 00:00:16]} Qd4 {[%clk 00:17:05]
[%emt 00:03:21]} 40. Qb1 {[%clk 00:11:59] [%emt 00:00:04]} Rfe6 {[%clk 00:16:29]
[%emt 00:01:05]} 41. Rf1 {[%clk 00:12:16] [%emt 00:00:13]} Qc3 {[%clk 00:15:27]
[%emt 00:01:32]} 42. Qf5 {[%clk 00:12:20] [%emt 00:00:27]} Re5 {[%clk 00:15:30]
[%emt 00:00:27]} 43. Qg4 {[%clk 00:12:38] [%emt 00:00:12]} Qd3 {[%clk 00:15:30]
[%emt 00:00:29]} 44. Rd1 {[%clk 00:13:00] [%emt 00:00:08]} Qf5 {[%clk 00:15:46]
[%emt 00:00:15]} 45. Qxf5 {[%clk 00:13:25] [%emt 00:00:05]} Rxf5 {[%clk
00:16:11] [%emt 00:00:04]} 46. Rd6 {[%clk 00:13:53] [%emt 00:00:02]} c4 {[%clk
00:16:13] [%emt 00:00:28]} 0-1

[Site "Europe Echecs"]

[Event "Saint Louis Masters"]
[Date "2024.12.07"]
[White "Robson, Ray"]
[Black "Can, Isik"]
[WhiteElo "2700"]
[BlackElo "2499"]
[Round "9.4"]
[Result "1/2-1/2"]
[TimeControl "5400+30"]

1. d4 {[%clk 01:25:35] [%emt 00:05:23]} d5 {[%clk 01:28:22] [%emt 00:02:38]} 2.
c4 {[%clk 01:25:47] [%emt 00:00:18]} c6 {[%clk 01:28:38] [%emt 00:00:14]} 3. Nf3
{[%clk 01:25:42] [%emt 00:00:36]} Nf6 {[%clk 01:29:00] [%emt 00:00:08]} 4. h3
{[%clk 01:25:34] [%emt 00:00:38]} e6 {[%clk 01:24:43] [%emt 00:04:47]} 5. e3
{[%clk 01:25:41] [%emt 00:00:22]} Nbd7 {[%clk 01:19:53] [%emt 00:05:20]} 6. Nbd2
{[%clk 01:25:42] [%emt 00:00:29]} c5 {[%clk 01:16:46] [%emt 00:03:38]} 7. cxd5
{[%clk 01:24:15] [%emt 00:01:56]} Nxd5 {[%clk 01:16:37] [%emt 00:00:40]} 8. e4
{[%clk 01:21:58] [%emt 00:02:47]} Nc7 {[%clk 01:04:02] [%emt 00:13:05]} 9. Nb3
{[%clk 01:13:14] [%emt 00:09:14]} cxd4 {[%clk 01:03:13] [%emt 00:01:19]} 10.
Qxd4 {[%clk 01:10:37] [%emt 00:03:07]} Nf6 {[%clk 01:03:09] [%emt 00:00:34]} 11.
Qxd8+ {[%clk 01:06:27] [%emt 00:04:40]} Kxd8 {[%clk 01:01:07] [%emt 00:02:33]}
12. Bd3 {[%clk 01:05:06] [%emt 00:01:49]} Na6 {[%clk 00:53:22] [%emt 00:08:16]}
13. a3 {[%clk 00:45:26] [%emt 00:20:10]} Nc5 {[%clk 00:51:01] [%emt 00:02:51]}
14. Nxc5 {[%clk 00:45:46] [%emt 00:00:10]} Bxc5 {[%clk 00:51:24] [%emt
00:00:07]} 15. Bf4 {[%clk 00:44:28] [%emt 00:01:48]} Ke7 {[%clk 00:47:11] [%emt
00:04:43]} 16. Rc1 {[%clk 00:41:08] [%emt 00:03:51]} Bb6 {[%clk 00:43:59] [%emt
00:03:42]} 17. Ne5 {[%clk 00:39:56] [%emt 00:01:41]} Rd8 {[%clk 00:36:24] [%emt
00:08:05]} 18. Ke2 {[%clk 00:37:14] [%emt 00:03:13]} Bd7 {[%clk 00:33:49] [%emt
00:03:05]} 19. Bd2 {[%clk 00:35:25] [%emt 00:02:19]} a5 {[%clk 00:31:09] [%emt
00:03:11]} 20. b4 {[%clk 00:26:00] [%emt 00:09:54]} Ba4 {[%clk 00:22:07] [%emt
00:09:32]} 21. Nc4 {[%clk 00:19:46] [%emt 00:06:44]} Bb5 {[%clk 00:20:45] [%emt
00:01:53]} 22. Nxb6 {[%clk 00:17:09] [%emt 00:03:07]} Rxd3 {[%clk 00:19:15]
[%emt 00:02:00]} 23. a4 {[%clk 00:03:53] [%emt 00:13:45]} Rad8 {[%clk 00:10:09]
[%emt 00:09:36]} 24. Be3 {[%clk 00:04:03] [%emt 00:00:20]} Rd2+ {[%clk 00:08:26]
[%emt 00:02:13]} 25. Kf3 {[%clk 00:04:24] [%emt 00:00:08]} Be2+ {[%clk 00:08:53]
[%emt 00:00:03]} 26. Kg3 {[%clk 00:04:41] [%emt 00:00:12]} Nxe4+ {[%clk
00:09:20] [%emt 00:00:04]} 27. Kh2 {[%clk 00:04:58] [%emt 00:00:13]} Ra2 {[%clk
00:08:40] [%emt 00:01:10]} 28. b5 {[%clk 00:03:16] [%emt 00:02:13]} e5 {[%clk
00:06:14] [%emt 00:02:56]} 29. Rc7+ {[%clk 00:03:10] [%emt 00:00:35]} Ke6 {[%clk
00:06:43] [%emt 00:00:02]} 30. Rxb7 {[%clk 00:03:11] [%emt 00:00:29]} Rc2 {[%clk
00:06:31] [%emt 00:00:42]} 31. Ra7 {[%clk 00:00:57] [%emt 00:02:44]} f5 {[%clk
00:04:12] [%emt 00:02:48]} 32. f4 {[%clk 00:00:57] [%emt 00:00:31]} exf4 {[%clk
00:03:07] [%emt 00:01:35]} 33. Bxf4 {[%clk 00:01:15] [%emt 00:00:11]} g5 {[%clk
00:03:36] [%emt 00:00:02]} 1/2-1/2

[Site "Europe Echecs"]

[Event "Saint Louis Masters"]
[Date "2024.12.07"]
[White "Shankland, Sam"]
[Black "Bok, Benjamin"]
[WhiteElo "2672"]
[BlackElo "2593"]
[Round "9.5"]
[Result "1/2-1/2"]
[TimeControl "5400+30"]

1. d4 {[%clk 01:30:59] [%emt 14:12:15]} Nf6 {[%clk 01:28:13] [%emt 00:02:47]} 2.
c4 {[%clk 01:31:23] [%emt 00:00:06]} e6 {[%clk 01:28:23] [%emt 00:00:20]} 3. Nf3
{[%clk 01:31:46] [%emt 00:00:06]} d5 {[%clk 01:28:37] [%emt 00:00:17]} 4. g3
{[%clk 01:32:10] [%emt 00:00:06]} Be7 {[%clk 01:28:46] [%emt 00:00:22]} 5. Bg2
{[%clk 01:32:28] [%emt 00:00:11]} O-O {[%clk 01:29:10] [%emt 00:00:07]} 6. O-O
{[%clk 01:32:52] [%emt 00:00:06]} dxc4 {[%clk 01:29:37] [%emt 00:00:04]} 7. Qa4
{[%clk 01:33:06] [%emt 00:00:15]} a6 {[%clk 01:30:02] [%emt 00:00:06]} 8. Qxc4
{[%clk 01:33:33] [%emt 00:00:02]} b5 {[%clk 01:30:27] [%emt 00:00:05]} 9. Qc2
{[%clk 01:33:59] [%emt 00:00:03]} Bb7 {[%clk 01:30:54] [%emt 00:00:04]} 10. Bd2
{[%clk 01:34:22] [%emt 00:00:06]} Ra7 {[%clk 01:30:58] [%emt 00:00:27]} 11. Rc1
{[%clk 01:34:20] [%emt 00:00:31]} Be4 {[%clk 01:28:03] [%emt 00:03:25]} 12. Qc3
{[%clk 01:34:45] [%emt 00:00:05]} Nc6 {[%clk 01:26:31] [%emt 00:02:02]} 13. Be3
{[%clk 01:35:00] [%emt 00:00:14]} Ng4 {[%clk 01:24:55] [%emt 00:02:07]} 14. Nbd2
{[%clk 01:35:19] [%emt 00:00:11]} Bb4 {[%clk 01:24:32] [%emt 00:00:53]} 15. Qb3
{[%clk 01:35:41] [%emt 00:00:08]} Bxd2 {[%clk 01:24:46] [%emt 00:00:15]} 16.
Bxd2 {[%clk 01:36:05] [%emt 00:00:05]} Nxd4 {[%clk 01:25:05] [%emt 00:00:11]}
17. Qd1 {[%clk 01:36:31] [%emt 00:00:05]} c5 {[%clk 01:23:52] [%emt 00:01:43]}
18. Nxd4 {[%clk 01:35:33] [%emt 00:01:27]} Bxg2 {[%clk 01:24:07] [%emt
00:00:15]} 19. Nb3 {[%clk 01:36:00] [%emt 00:00:04]} c4 {[%clk 01:19:51] [%emt
00:04:46]} 20. Kxg2 {[%clk 01:35:53] [%emt 00:00:36]} Rd7 {[%clk 01:17:38] [%emt
00:02:44]} 21. Qg1 {[%clk 01:36:00] [%emt 00:00:22]} Rxd2 {[%clk 01:14:21] [%emt
00:03:47]} 22. Nxd2 {[%clk 01:36:13] [%emt 00:00:17]} Qxd2 {[%clk 01:14:49]
[%emt 00:00:02]} 23. h3 {[%clk 01:26:36] [%emt 00:10:08]} Ne5 {[%clk 01:12:05]
[%emt 00:03:14]} 24. Qd1 {[%clk 01:20:05] [%emt 00:07:01]} Qxb2 {[%clk 01:12:30]
[%emt 00:00:05]} 25. a4 {[%clk 01:20:31] [%emt 00:00:04]} Ng6 {[%clk 01:09:15]
[%emt 00:03:45]} 26. axb5 {[%clk 01:04:49] [%emt 00:16:12]} axb5 {[%clk
01:09:33] [%emt 00:00:11]} 27. Rcb1 {[%clk 01:01:49] [%emt 00:03:31]} Qe5 {[%clk
01:09:28] [%emt 00:00:35]} 28. Ra6 {[%clk 01:00:03] [%emt 00:02:16]} Rb8 {[%clk
00:51:56] [%emt 00:18:03]} 29. Kg1 {[%clk 00:58:25] [%emt 00:02:07]} Qe4 {[%clk
00:37:50] [%emt 00:14:36]} 30. Rd6 {[%clk 00:47:50] [%emt 00:11:04]} h6 {[%clk
00:29:45] [%emt 00:08:36]} 31. Rd4 {[%clk 00:41:48] [%emt 00:06:32]} Qe5 {[%clk
00:28:28] [%emt 00:01:47]} 32. e3 {[%clk 00:39:03] [%emt 00:03:15]} Kh7 {[%clk
00:26:28] [%emt 00:02:30]} 33. Qf3 {[%clk 00:30:34] [%emt 00:08:59]} Qc7 {[%clk
00:19:35] [%emt 00:07:23]} 34. Qe4 {[%clk 00:26:53] [%emt 00:04:11]} Kg8 {[%clk
00:15:22] [%emt 00:04:44]} 35. Rc1 {[%clk 00:21:44] [%emt 00:05:39]} Ne5 {[%clk
00:14:23] [%emt 00:01:29]} 36. f4 {[%clk 00:21:45] [%emt 00:00:29]} Nd7 {[%clk
00:14:08] [%emt 00:00:44]} 37. Rb1 {[%clk 00:21:05] [%emt 00:01:11]} Nc5 {[%clk
00:10:55] [%emt 00:03:43]} 38. Qc2 {[%clk 00:21:27] [%emt 00:00:08]} Qa7 {[%clk
00:09:47] [%emt 00:01:38]} 39. Rxb5 {[%clk 00:21:23] [%emt 00:00:33]} Ra8 {[%clk
00:07:19] [%emt 00:02:59]} 40. Rxc4 {[%clk 00:20:11] [%emt 00:01:42]} Nd7 {[%clk
00:07:36] [%emt 00:00:13]} 41. Rc8+ {[%clk 00:19:04] [%emt 00:01:37]} Rxc8
{[%clk 00:07:57] [%emt 00:00:10]} 42. Qxc8+ {[%clk 00:19:31] [%emt 00:00:02]}
Kh7 {[%clk 00:08:17] [%emt 00:00:10]} 43. Qc3 {[%clk 00:18:58] [%emt 00:01:02]}
f5 {[%clk 00:07:28] [%emt 00:01:20]} 44. g4 {[%clk 00:16:39] [%emt 00:02:49]}
Nf6 {[%clk 00:05:53] [%emt 00:02:04]} 45. Qd3 {[%clk 00:14:48] [%emt 00:02:21]}
Nd5 {[%clk 00:05:25] [%emt 00:00:58]} 46. Rxd5 {[%clk 00:14:30] [%emt 00:00:48]}
exd5 {[%clk 00:05:54] [%emt 00:00:01]} 47. Qxf5+ {[%clk 00:14:54] [%emt
00:00:06]} Kh8 {[%clk 00:06:11] [%emt 00:00:14]} 48. Qe5 {[%clk 00:14:49] [%emt
00:00:35]} Qa5 {[%clk 00:03:20] [%emt 00:03:22]} 49. Qb8+ {[%clk 00:14:12] [%emt
00:01:06]} Kh7 {[%clk 00:03:49] [%emt 00:00:01]} 50. Qb1+ {[%clk 00:14:35] [%emt
00:00:07]} Kh8 {[%clk 00:04:15] [%emt 00:00:04]} 51. Qd1 {[%clk 00:13:32] [%emt
00:01:33]} Qc3 {[%clk 00:04:05] [%emt 00:00:40]} 52. Kf2 {[%clk 00:13:28] [%emt
00:00:34]} Qb2+ {[%clk 00:04:29] [%emt 00:00:06]} 53. Kg3 {[%clk 00:12:59] [%emt
00:00:58]} Qa3 {[%clk 00:02:17] [%emt 00:02:43]} 54. Qd4 {[%clk 00:08:59] [%emt
00:04:30]} Qc1 {[%clk 00:02:18] [%emt 00:00:28]} 55. Kh4 {[%clk 00:09:06] [%emt
00:00:23]} Kh7 {[%clk 00:01:35] [%emt 00:01:14]} 56. f5 {[%clk 00:09:30] [%emt
00:00:06]} Qe1+ {[%clk 00:00:41] [%emt 00:01:24]} 57. Kh5 {[%clk 00:09:58]} Qf1
{[%clk 00:00:40] [%emt 00:00:32]} 58. h4 {[%clk 00:09:45] [%emt 00:00:43]} Qa6
{[%clk 00:00:46] [%emt 00:00:24]} 59. g5 {[%clk 00:10:08] [%emt 00:00:07]} Qe2+
{[%clk 00:00:35] [%emt 00:00:41]} 60. Qg4 {[%clk 00:10:32] [%emt 00:00:05]} Qxe3
{[%clk 00:00:58] [%emt 00:00:08]} 61. Qg2 {[%clk 00:09:01] [%emt 00:02:01]} Qe5
{[%clk 00:00:34] [%emt 00:00:55]} 62. Qc2 {[%clk 00:08:55] [%emt 00:00:36]} Qe8+
{[%clk 00:00:34] [%emt 00:00:30]} 63. g6+ {[%clk 00:08:25] [%emt 00:01:00]} Kg8
{[%clk 00:00:49] [%emt 00:00:14]} 64. Kg4 {[%clk 00:08:49] [%emt 00:00:06]} Qd8
{[%clk 00:00:42] [%emt 00:00:37]} 65. Qb3 {[%clk 00:07:33] [%emt 00:01:46]} Kh8
{[%clk 00:00:32] [%emt 00:00:40]} 66. Qb7 {[%clk 00:07:11] [%emt 00:00:52]} Qe8
{[%clk 00:00:40] [%emt 00:00:22]} 67. Qxd5 {[%clk 00:07:12] [%emt 00:00:29]} h5+
{[%clk 00:00:47] [%emt 00:00:23]} 68. Kf4 {[%clk 00:06:00] [%emt 00:01:42]} Qe3+
{[%clk 00:00:42] [%emt 00:00:36]} 69. Kxe3 {[%clk 00:06:26] [%emt 00:00:04]}
1/2-1/2

[Site "Europe Echecs"]